bitfinex-derivatives/quotes_BTCF0:USTF0_20210409
["timestamp","ask_amount","ask_price","bid_price","bid_amount"]
[1618010183032,0.2,58002.0,58001.0,0.27]
[1618010183432,0.64525587,58002.0,58001.0,0.27]
[1618010184131,0.44525587,58002.0,58001.0,0.27]
[1618010184532,0.44513296,58003.0,58001.0,0.27]
[1618010185133,0.2,58002.0,58001.0,0.27]
[1618010185734,0.64492016,58002.0,58001.0,0.27]
[1618010186734,0.2,58002.0,58001.0,0.27]
[1618010186935,0.64481565,58002.0,58001.0,0.27]
[1618010187836,0.64481565,58002.0,57996.0,0.27]
[1618010188155,0.64481565,58002.0,58001.0,0.27]
[1618010188338,0.64481565,58002.0,57995.0,0.4849]
[1618010188339,0.2,58002.0,57995.0,0.4849]
[1618010188536,0.44450515,58002.0,57996.0,0.27]
[1618010188736,0.2,58001.0,57996.0,0.27]
[1618010188937,0.44449587,57999.0,57996.0,0.27]
[1618010189737,0.10725655,57997.0,57996.0,0.27]
[1618010190940,0.30725655,57997.0,57996.0,0.27]
[1618010192039,0.75118999,57997.0,57996.0,0.27]
[1618010194242,0.55118999,57997.0,57996.0,0.27]
[1618010195543,0.10725655,57997.0,57996.0,0.27]
[1618010197645,3.43345655,57997.0,57996.0,0.27]
[1618010198245,3.63345655,57997.0,57996.0,0.27]
[1618010199650,3.43345655,57997.0,57996.0,0.27]
[1618010207862,3.54272655,57997.0,57996.0,0.27]
[1618010209765,3.9049008,57997.0,57996.0,0.27]
[1618010213574,5.4049008,57997.0,57990.0,0.27]
[1618010213772,0.10725655,57991.0,57990.0,0.27]
[1618010213974,0.10725655,57991.0,57986.0,0.26]
[1618010214174,0.46899296,57991.0,57990.0,0.27]
[1618010214373,0.46899296,57991.0,57990.0,0.07]
[1618010214673,0.46899296,57991.0,57984.0,0.4917]
[1618010214674,2.04933724,57991.0,57984.0,0.4917]
[1618010214874,2.47237187,57991.0,57990.0,0.27]
[1618010215273,2.47237187,57991.0,57985.0,0.27]
[1618010215274,2.67572478,57991.0,57985.0,0.27]
[1618010215474,1.60725655,57991.0,57990.0,0.27]
[1618010215775,2.41050546,57991.0,57985.0,0.27]
[1618010216175,0.36158465,57986.0,57984.0,0.4917]
[1618010216576,0.36158465,57986.0,57985.0,0.27]
[1618010216778,0.4416997,57986.0,57985.0,0.27]
[1618010216979,0.80309677,57986.0,57985.0,0.27]
[1618010221582,3.54929677,57986.0,57985.0,0.27]
[1618010221885,3.81940649,57986.0,57985.0,0.27]
[1618010222681,4.32205616,57986.0,57985.0,0.27]
[1618010229492,4.42390616,57986.0,57985.0,0.27]
[1618010230594,3.71209674,57986.0,57985.0,0.27]
[1618010231595,3.61024674,57986.0,57985.0,0.27]
[1618010231797,3.24884967,57986.0,57985.0,0.27]
[1618010231995,3.6110187,57986.0,57985.0,0.27]
[1618010241406,4.17306158,57986.0,57985.0,0.2689739]
[1618010241805,4.38288606,57986.0,57985.0,0.2689739]
[1618010249317,4.38288606,57986.0,57985.0,0.3206739]
[1618010249719,4.38288606,57986.0,57985.0,0.2689739]
[1618010251021,4.50678606,57986.0,57985.0,0.2689739]
[1618010251423,4.50678606,57986.0,57985.0,0.26794795]
[1618010252423,4.50678606,57986.0,57984.0,0.4917]
[1618010252424,6.00678606,57986.0,57984.0,0.4917]
[1618010252625,3.26058606,57986.0,57970.0,0.4971]
[1618010252924,1.5,57984.0,57970.0,0.4971]
[1618010253125,0.80240567,57971.0,57970.0,0.4971]
[1618010253324,0.89880567,57971.0,57970.0,0.4971]
[1618010253624,0.89880567,57971.0,57970.0,0.7671]
[1618010253824,4.95485476,57971.0,57970.0,0.7671]
[1618010254024,5.06211131,57971.0,57970.0,0.27]
[1618010254326,5.12367307,57971.0,57970.0,0.27]
[1618010254526,5.33273278,57971.0,57960.0,0.27]
[1618010254827,5.33273278,57971.0,57970.0,0.27]
[1618010255131,0.20365655,57971.0,57960.0,0.27]
[1618010255338,0.20365655,57971.0,57970.0,0.27]
[1618010255339,3.00605843,57971.0,57970.0,0.27]
[1618010255625,3.00605843,57971.0,57955.0,0.1274]
[1618010255626,1.70365655,57971.0,57956.0,0.27]
[1618010255825,3.1722,57959.0,57956.0,0.27]
[1618010256026,0.10725655,57957.0,57952.0,0.4654]
[1618010256224,0.10725655,57957.0,57953.0,0.27]
[1618010256425,0.10725655,57957.0,57952.0,0.4654]
[1618010256426,0.06156949,57956.0,57952.0,0.4654]
[1618010256627,0.36028248,57954.0,57952.0,0.4654]
[1618010256824,0.36028248,57954.0,57953.0,0.27]
[1618010257126,0.42178705,57954.0,57953.0,0.27]
[1618010257627,0.10725655,57957.0,57953.0,0.27]
[1618010258127,0.36018981,57954.0,57953.0,0.27]
[1618010260328,0.8000522,57954.0,57953.0,0.27]
[1618010264034,0.36018981,57954.0,57953.0,0.27]
[1618010264635,0.80062905,57954.0,57953.0,0.27]
[1618010265038,0.36018981,57954.0,57953.0,0.27]
[1618010265237,0.42176778,57954.0,57953.0,0.27]
[1618010265537,0.36018981,57954.0,57953.0,0.27]
[1618010267745,3.62278981,57954.0,57953.0,0.27]
[1618010267943,3.68436651,57954.0,57953.0,0.27]
[1618010269941,3.2626,57954.0,57953.0,0.27]
[1618010270142,4.06684236,57954.0,57953.0,0.27]
[1618010270641,4.0674772,57954.0,57953.0,0.27]
[1618010271443,4.0677434,57954.0,57953.0,0.27]
[1618010272043,4.06791541,57954.0,57953.0,0.27]
[1618010273768,0.80531541,57954.0,57953.0,0.27]
[1618010274046,3.62564301,57954.0,57953.0,1.27]
[1618010274945,3.62564301,57954.0,57953.0,0.27]
[1618010275148,4.06983252,57954.0,57953.0,0.27]
[1618010275545,3.62564301,57954.0,57953.0,0.27]
[1618010275745,4.06986616,57954.0,57953.0,0.27]
[1618010276748,4.16470616,57954.0,57953.0,0.27]
[1618010277148,4.16470616,57954.0,57953.0,0.3224]
[1618010277549,4.16470616,57954.0,57953.0,0.27]
[1618010281955,4.66790971,57954.0,57953.0,0.27]
[1618010282155,4.66790971,57954.0,57952.0,0.4654]
[1618010282463,2.90490971,57954.0,57935.0,1.0]
[1618010282655,1.7781916,57953.0,57931.0,0.30615933]
[1618010282957,0.36165113,57933.0,57925.0,1.30613983]
[1618010283328,0.36165113,57933.0,57932.0,0.27]
[1618010283329,0.09379,57933.0,57932.0,0.27]
[1618010283515,2.88739,57933.0,57929.0,0.27]
[1618010283687,3.75180108,57933.0,57919.0,1.30618031]
[1618010283893,3.75180108,57933.0,57916.0,0.36741637]
[1618010283894,0.44150433,57930.0,57925.0,0.27]
[1618010284097,0.36099332,57926.0,57922.0,0.01]
[1618010284256,0.10725655,57923.0,57922.0,0.01]
[1618010284458,0.10725655,57923.0,57920.0,0.27]
[1618010284757,0.52973679,57923.0,57917.0,0.01]
[1618010284956,0.36085848,57921.0,57917.0,0.01]
[1618010285158,0.14531,57921.0,57915.0,0.478]
[1618010285357,0.14531,57921.0,57918.0,0.27]
[1618010285859,0.14531,57921.0,57919.0,0.27]
[1618010286061,2.985,57922.0,57919.0,0.27]
[1618010286360,2.985,57922.0,57920.0,1.0]
[1618010286661,2.985,57922.0,57921.0,1.01]
[1618010286861,2.985,57922.0,57921.0,1.1118]
[1618010287063,2.985,57922.0,57921.0,1.1018]
[1618010287263,2.985,57922.0,57921.0,1.3718]
[1618010287864,0.36079577,57930.0,57921.0,1.3718]
[1618010288067,0.36093649,57932.0,57921.0,1.3718]
[1618010288264,0.3609499,57931.0,57929.0,1.0]
[1618010288465,0.36103222,57933.0,57929.0,1.0]
[1618010288665,0.36103222,57933.0,57932.0,1.0]
[1618010288865,3.07713932,57937.0,57932.0,1.0]
[1618010289066,3.07713932,57937.0,57932.0,1.01]
[1618010289266,2.6359,57937.0,57934.0,1.0]
[1618010289666,3.0771323,57937.0,57935.0,1.27]
[1618010289966,0.36103169,57936.0,57935.0,0.27]
[1618010290166,0.46828824,57936.0,57935.0,0.27]
[1618010290366,0.46828824,57936.0,57932.0,1.0]
[1618010290569,0.90945112,57936.0,57933.0,0.01]
[1618010290766,0.10725655,57936.0,57935.0,0.27]
[1618010290966,0.54833988,57936.0,57931.0,1.0]
[1618010291265,0.54833988,57936.0,57932.0,0.01]
[1618010291467,0.10725655,57936.0,57935.0,0.27]
[1618010291667,0.90934674,57936.0,57927.0,1.10725655]
[1618010291968,0.44104521,57935.0,57932.0,0.27]
[1618010292168,0.10725655,57929.0,57927.0,0.10725655]
[1618010292569,0.10725655,57929.0,57928.0,0.27]
[1618010292969,3.34415655,57929.0,57928.0,0.27]
[1618010293273,3.70476918,57929.0,57928.0,0.27]
[1618010293668,3.70476918,57929.0,57923.0,0.27]
[1618010294069,3.70476918,57929.0,57928.0,0.27]
[1618010294369,3.70476918,57929.0,57924.0,0.01]
[1618010294768,3.70476918,57929.0,57928.0,0.01]
[1618010294969,3.70476918,57929.0,57923.0,0.26]
[1618010295168,3.70476918,57929.0,57925.0,0.27]
[1618010295369,3.70476918,57929.0,57928.0,0.02]
[1618010295569,3.70476918,57929.0,57924.0,0.01]
[1618010295771,3.70476918,57929.0,57926.0,0.26]
[1618010295970,3.70476918,57929.0,57928.0,0.03]
[1618010296169,3.70476918,57929.0,57923.0,0.26]
[1618010296371,3.70476918,57929.0,57927.0,0.26]
[1618010296572,0.46786918,57929.0,57928.0,0.03]
[1618010296773,3.70646918,57929.0,57922.0,1.26]
[1618010296972,3.70646918,57929.0,57923.0,1.0]
[1618010297172,3.70646918,57929.0,57928.0,0.27]
[1618010297372,3.70646918,57929.0,57923.0,0.27]
[1618010297572,3.70646918,57929.0,57924.0,0.01]
[1618010297773,3.70646918,57929.0,57928.0,0.27]
[1618010297973,3.70646918,57929.0,57922.0,0.27]
[1618010298173,0.10725655,57923.0,57921.0,0.01]
[1618010298573,0.10725655,57923.0,57920.0,0.10725655]
[1618010298874,0.10725655,57923.0,57922.0,1.27]
[1618010299072,0.10725655,57923.0,57922.0,1.0]
[1618010299273,0.10725655,57923.0,57920.0,0.10725655]
[1618010299573,0.10725655,57923.0,57922.0,0.27]
[1618010299773,0.10725655,57923.0,57921.0,1.27]
[1618010299974,0.10725655,57923.0,57922.0,0.27]
[1618010300374,0.10725655,57923.0,57921.0,1.0]
[1618010300574,0.10725655,57923.0,57921.0,1.27]
[1618010300775,0.10725655,57923.0,57922.0,0.27]
[1618010300976,0.10725655,57923.0,57921.0,1.0]
[1618010301274,0.10725655,57923.0,57922.0,0.27]
[1618010302175,0.10725655,57923.0,57922.0,1.27]
[1618010302577,0.10725655,57923.0,57922.0,0.27]
[1618010304080,0.10725655,57923.0,57921.0,0.27]
[1618010304278,0.10725655,57923.0,57922.0,0.27]
[1618010304478,0.10725655,57923.0,57922.0,1.0]
[1618010304879,0.10725655,57923.0,57922.0,0.27]
[1618010305280,0.10725655,57923.0,57922.0,1.27]
[1618010307086,0.10725655,57923.0,57922.0,0.27]
[1618010307285,0.10725655,57923.0,57922.0,1.27]
[1618010308086,2.6231,57927.0,57922.0,1.27]
[1618010308286,2.6231,57927.0,57926.0,0.10725655]
[1618010308588,0.10725655,57929.0,57926.0,4.76165655]
[1618010308787,0.10725655,57929.0,57926.0,5.03165655]
[1618010308987,0.10725655,57929.0,57928.0,1.0]
[1618010309387,0.10725655,57929.0,57928.0,1.27]
[1618010309587,0.44174828,57939.0,57928.0,1.27]
[1618010309789,0.4418334,57941.0,57928.0,1.27]
[1618010309988,0.4418334,57941.0,57937.0,1.0]
[1618010310189,0.4418334,57941.0,57937.0,1.10765]
[1618010310390,0.54908995,57941.0,57940.0,1.10725655]
[1618010310590,0.54908995,57941.0,57940.0,0.10725655]
[1618010310789,0.54908995,57941.0,57940.0,1.37725655]
[1618010311191,0.10725655,57941.0,57940.0,1.37725655]
[1618010311692,0.54936205,57941.0,57940.0,1.37725655]
[1618010311892,0.10725655,57941.0,57940.0,1.37725655]
[1618010312091,0.54944266,57941.0,57940.0,1.37725655]
[1618010313393,0.54944266,57941.0,57940.0,0.37725655]
[1618010314493,3.70184266,57941.0,57940.0,0.37725655]
[1618010314996,3.88469716,57941.0,57940.0,0.37725655]
[1618010315404,3.88469716,57941.0,57940.0,0.27]
[1618010315595,4.02948716,57941.0,57940.0,0.27]
[1618010315895,5.52948716,57941.0,57936.0,0.27]
[1618010316295,0.10725655,57928.0,57927.0,0.1274]
[1618010316497,0.24367655,57928.0,57927.0,0.1274]
[1618010317114,0.24367655,57928.0,57927.0,0.3974]
[1618010317628,0.68567466,57928.0,57927.0,0.3974]
[1618010317895,0.68567466,57928.0,57927.0,0.27]
[1618010318296,0.68567466,57928.0,57917.0,0.27]
[1618010318998,0.44191252,57927.0,57917.0,0.27]
[1618010320399,0.10725655,57918.0,57917.0,0.27]
[1618010320800,0.10725655,57918.0,57917.0,1.27]
[1618010321103,0.10725655,57918.0,57917.0,1.0]
[1618010321301,0.10725655,57918.0,57917.0,1.27]
[1618010321503,0.10725655,57918.0,57917.0,1.57620945]
[1618010323708,0.10725655,57918.0,57917.0,0.57620945]
[1618010323918,0.44194348,57930.0,57917.0,0.57620945]
[1618010324132,0.44215672,57931.0,57917.0,2.08771645]
[1618010324308,0.44215672,57931.0,57929.0,1.10725655]
[1618010324509,0.44247252,57935.0,57929.0,1.20990655]
[1618010324709,0.44247252,57935.0,57930.0,1.27]
[1618010324910,3.457,57951.0,57934.0,1.0]
[1618010325109,0.44246676,57936.0,57934.0,1.0]
[1618010325308,0.44246676,57936.0,57929.0,0.20990655]
[1618010325309,0.44246676,57936.0,57935.0,0.27]
[1618010325509,0.44246194,57937.0,57935.0,0.27]
[1618010325710,0.44246194,57937.0,57935.0,1.0]
[1618010325979,0.44246194,57937.0,57936.0,1.0]
[1618010326147,0.44246194,57937.0,57936.0,1.2]
[1618010326340,0.183074,57950.0,57936.0,1.47]
[1618010326341,0.44268508,57939.0,57936.0,1.47]
[1618010326525,0.44268508,57939.0,57936.0,0.57725655]
[1618010326768,0.44294188,57943.0,57936.0,0.57725655]
[1618010326964,0.44308821,57944.0,57938.0,1.0]
[1618010327158,0.4431362,57945.0,57942.0,2.5096]
[1618010327333,0.4431362,57945.0,57943.0,0.2]
[1618010327516,0.4431362,57945.0,57943.0,1.21]
[1618010327712,0.44316022,57946.0,57944.0,1.0]
[1618010328036,0.4431875,57945.0,57944.0,0.2]
[1618010328420,0.4431875,57945.0,57944.0,0.37725655]
[1618010328638,0.4431875,57945.0,57944.0,1.37725655]
[1618010328850,0.4431875,57945.0,57944.0,0.37725655]
[1618010329092,3.4247875,57945.0,57944.0,0.37725655]
[1618010329515,3.61103769,57945.0,57944.0,0.37725655]
[1618010330013,4.11418573,57945.0,57944.0,0.27]
[1618010330417,4.22144228,57945.0,57941.0,0.27]
[1618010330914,3.59200459,57945.0,57944.0,0.27]
[1618010331114,3.59200459,57945.0,57941.0,0.27]
[1618010331315,4.03498288,57945.0,57944.0,0.27]
[1618010331516,0.61040459,57945.0,57944.0,0.39281]
[1618010331716,0.55041471,57945.0,57944.0,1.12281]
[1618010331918,0.55041471,57945.0,57944.0,4.00711]
[1618010332121,0.55041471,57945.0,57944.0,4.27711]
[1618010332719,0.44315816,57945.0,57944.0,3.47711]
[1618010333074,0.44315816,57945.0,57944.0,4.47711]
[1618010333420,0.44391119,57948.0,57944.0,4.47711]
[1618010333846,0.88772152,57977.0,57944.0,4.47711]
[1618010333847,0.44403572,57949.0,57944.0,3.47711]
[1618010334426,0.44403572,57949.0,57948.0,1.10725655]
[1618010334623,0.44403572,57949.0,57948.0,1.30725655]
[1618010334824,0.44403572,57949.0,57948.0,1.57725655]
[1618010335225,0.44429607,57950.0,57948.0,1.57725655]
[1618010335427,0.44429607,57950.0,57949.0,3.6573]
[1618010335726,0.44429607,57950.0,57949.0,3.8573]
[1618010335926,0.44429607,57950.0,57949.0,5.1273]
[1618010336425,0.44442523,57951.0,57949.0,5.1273]
[1618010336827,0.44442523,57951.0,57949.0,4.1273]
[1618010337032,0.44442523,57951.0,57950.0,1.0]
[1618010337227,0.44442523,57951.0,57950.0,1.2]
[1618010337428,0.44442523,57951.0,57950.0,1.47]
[1618010339331,0.44442523,57951.0,57950.0,0.47]
[1618010339934,0.44494293,57952.0,57950.0,0.47]
[1618010340235,0.4450942,57954.0,57951.0,3.6861]
[1618010340536,0.4450942,57954.0,57952.0,6.2]
[1618010340834,0.44541859,57959.0,57953.0,6.30647987]
[1618010341034,0.44541859,57959.0,57958.0,1.0]
[1618010341335,0.44541859,57959.0,57958.0,1.31976]
[1618010341734,0.44566995,57960.0,57958.0,1.31976]
[1618010342137,0.44560565,57961.0,57958.0,0.31976]
[1618010342434,0.44568125,57962.0,57960.0,1.10725655]
[1618010342634,0.10725655,57966.0,57960.0,1.10725655]
[1618010342635,0.10725655,57966.0,57961.0,0.2]
[1618010342835,0.44575226,57963.0,57961.0,0.47]
[1618010343237,0.44575226,57963.0,57962.0,1.0]
[1618010343435,0.44575226,57963.0,57962.0,1.2]
[1618010343735,0.4455818,57964.0,57962.0,1.47]
[1618010343935,0.44554682,57963.0,57962.0,1.47]
[1618010344135,0.44538033,57964.0,57962.0,0.47]
[1618010344436,0.44533777,57963.0,57962.0,1.47]
[1618010344638,0.44533777,57963.0,57962.0,0.47]
[1618010344836,0.44533777,57963.0,57962.0,1.47]
[1618010345137,0.44546629,57965.0,57962.0,1.47]
[1618010345337,0.55263038,57966.0,57962.0,1.47]
[1618010345537,0.10725655,57966.0,57965.0,1.0]
[1618010345736,0.44545149,57967.0,57965.0,1.2]
[1618010345939,0.56691065,57982.0,57965.0,1.2]
[1618010345940,0.44552006,57968.0,57967.0,2.8503]
[1618010346277,0.24552006,57968.0,57967.0,2.8503]
[1618010346474,0.50616892,57975.0,57967.0,3.0603]
[1618010346638,0.50619533,57976.0,57967.0,4.16755655]
[1618010346839,0.50633628,57977.0,57974.0,1.0]
[1618010347038,0.50633628,57977.0,57975.0,1.0]
[1618010347240,0.50615495,57979.0,57975.0,1.27]
[1618010347438,0.50615495,57979.0,57976.0,1.0]
[1618010347739,0.50622474,57980.0,57978.0,1.0]
[1618010348139,0.50622474,57980.0,57979.0,0.01]
[1618010348339,0.70872129,57998.0,57979.0,0.01]
[1618010348340,0.50606372,57981.0,57979.0,0.01]
[1618010348540,0.56677922,57990.0,57974.0,0.11559]
[1618010348541,0.50612143,57982.0,57981.0,0.10725655]
[1618010348952,4.13092143,57982.0,57981.0,0.10725655]
[1618010349341,4.31814649,57982.0,57981.0,0.37725655]
[1618010349744,4.31814649,57982.0,57981.0,0.37623044]
[1618010350542,4.42540304,57982.0,57981.0,0.37623044]
[1618010351548,4.42540304,57982.0,57981.0,0.27]
[1618010351947,4.42540304,57982.0,57972.0,0.27]
[1618010352147,0.50516348,57975.0,57974.0,1.0]
[1618010352349,0.50516348,57975.0,57969.0,3.6758]
[1618010352548,0.50516348,57975.0,57974.0,0.27]
[1618010352749,0.50516348,57975.0,57974.0,1.27]
[1618010352948,0.50516348,57975.0,57970.0,0.10725655]
[1618010353149,0.50516348,57975.0,57974.0,0.26]
[1618010353349,0.50516348,57975.0,57970.0,0.10725655]
[1618010353749,0.50516348,57975.0,57974.0,1.0]
[1618010354150,0.50516348,57975.0,57974.0,1.01]
[1618010354651,0.10725655,57975.0,57974.0,1.01]
[1618010354853,0.61297224,57975.0,57974.0,1.01]
[1618010355953,0.61297224,57975.0,57974.0,0.01]
[1618010356358,0.61297224,57975.0,57974.0,1.0]
[1618010356655,0.61297224,57975.0,57974.0,0.27]
[1618010357156,0.61297224,57975.0,57970.0,0.27]
[1618010357357,0.61297224,57975.0,57974.0,0.27]
[1618010357755,0.61297224,57975.0,57970.0,0.27]
[1618010357955,0.10725655,57975.0,57974.0,0.27]
[1618010358367,0.61265343,57975.0,57974.0,0.0599]
[1618010358566,0.61265343,57975.0,57974.0,0.3299]
[1618010358857,0.61265343,57975.0,57974.0,0.0599]
[1618010359356,0.61265343,57975.0,57974.0,0.3299]
[1618010359959,0.61265343,57975.0,57974.0,0.3288738]
[1618010362978,0.61265343,57975.0,57974.0,4.1178438]
[1618010363561,0.10725655,57975.0,57974.0,4.1178438]
[1618010364760,0.10725655,57975.0,57974.0,4.22510035]
[1618010366165,0.10725655,57975.0,57974.0,1.58010035]
[1618010366363,3.84055134,57975.0,57974.0,1.58010035]
[1618010366563,4.00923777,57975.0,57974.0,1.58010035]
[1618010367164,4.00923777,57975.0,57974.0,0.58010035]
[1618010367387,4.00923777,57975.0,57974.0,0.43613035]
[1618010367668,4.51510293,57975.0,57974.0,0.43613035]
[1618010368764,4.51510293,57975.0,57974.0,0.3288738]
[1618010370965,1.22720293,57975.0,57974.0,0.3288738]
[1618010371367,1.0585165,57975.0,57974.0,0.3288738]
[1618010371566,1.0585165,57975.0,57974.0,0.32784759]
[1618010371765,1.0585165,57975.0,57974.0,3.37314759]
[1618010371966,1.0585165,57975.0,57974.0,3.47000759]
[1618010372867,1.0585165,57975.0,57974.0,3.57726414]
[1618010373067,0.55265134,57975.0,57974.0,4.57726414]
[1618010376874,1.05850191,57975.0,57974.0,4.57726414]
[1618010377574,1.05850191,57975.0,57974.0,3.57726414]
[1618010377774,1.05850191,57975.0,57974.0,3.48040414]
[1618010381779,1.05850191,57975.0,57974.0,0.43510414]
[1618010382380,4.67860191,57975.0,57974.0,0.43510414]
[1618010382780,4.84801426,57975.0,57974.0,0.43510414]
[1618010384282,1.22791426,57975.0,57974.0,0.43510414]
[1618010384683,1.05850191,57975.0,57974.0,3.05460414]
[1618010384984,1.05850191,57975.0,57974.0,4.16153414]
[1618010385283,0.95124536,57975.0,57974.0,4.16153414]
[1618010396603,0.95124536,57975.0,57974.0,1.54203414]
[1618010397104,4.42944536,57975.0,57974.0,1.54203414]
[1618010397505,4.6012604,57975.0,57974.0,1.54203414]
[1618010398306,1.1230604,57975.0,57974.0,1.54203414]
[1618010398706,0.95124536,57975.0,57974.0,1.54203414]
[1618010399408,0.95124536,57975.0,57974.0,5.11843414]
[1618010400009,0.44539479,57975.0,57974.0,5.79414609]
[1618010401311,0.44539479,57975.0,57974.0,4.79414609]
[1618010403116,0.44539479,57975.0,57974.0,5.79414609]
[1618010404216,0.44846109,57976.0,57974.0,5.79414609]
[1618010404515,0.44846109,57976.0,57975.0,0.73693206]
[1618010404917,0.44846109,57976.0,57975.0,2.00693206]
[1618010405218,0.44860264,57977.0,57975.0,2.00693206]
[1618010405420,0.44860264,57977.0,57976.0,0.73679345]
[1618010405820,0.44860264,57977.0,57976.0,2.00679345]
[1618010406018,0.44860264,57977.0,57976.0,1.63848228]
[1618010406220,0.44860264,57977.0,57976.0,2.00673677]
[1618010406418,0.44857572,57978.0,57976.0,2.00673677]
[1618010406617,0.44857572,57978.0,57977.0,0.36842441]
[1618010407118,0.44857572,57978.0,57977.0,1.63842441]
[1618010408049,0.44857572,57978.0,57977.0,2.00650912]
[1618010408318,0.44850624,57979.0,57977.0,1.63842441]
[1618010408619,0.44850624,57979.0,57977.0,0.63842441]
[1618010408920,0.10725655,57987.0,57978.0,0.30673449]
[1618010408921,0.50952227,57984.0,57978.0,0.30673449]
[1618010409118,0.50952227,57984.0,57983.0,0.10725655]
[1618010409320,0.10725655,57987.0,57983.0,1.10725655]
[1618010409520,0.95794666,57984.0,57983.0,1.11725655]
[1618010409721,0.95794666,57984.0,57983.0,0.11725655]
[1618010409919,0.95794666,57984.0,57983.0,1.11725655]
[1618010410418,0.44840707,57984.0,57983.0,1.11725655]
[1618010410919,0.9578931,57984.0,57983.0,1.11725655]
[1618010411121,0.44840707,57984.0,57983.0,1.11725655]
[1618010412622,0.44840707,57984.0,57983.0,4.14075655]
[1618010417432,0.95834519,57984.0,57983.0,4.14075655]
[1618010417634,0.44840707,57984.0,57983.0,4.14075655]
[1618010417934,0.44840707,57984.0,57983.0,1.11725655]
[1618010418135,4.49764445,57984.0,57983.0,1.11725655]
[1618010418456,4.67236019,57984.0,57983.0,1.11725655]
[1618010418734,4.67236019,57984.0,57983.0,0.11725655]
[1618010419481,4.87236019,57984.0,57983.0,0.11725655]
[1618010421036,4.87236019,57984.0,57983.0,0.01]
[1618010421436,1.33306019,57984.0,57981.0,0.27]
[1618010421639,0.2,57984.0,57983.0,3.7232]
[1618010421836,0.2,57984.0,57983.0,3.9932]
[1618010422138,1.15931033,57984.0,57983.0,3.7232]
[1618010422337,1.15931033,57984.0,57983.0,3.9932]
[1618010422838,0.95931033,57984.0,57983.0,3.9932]
[1618010426339,3.86861033,57984.0,57983.0,3.9932]
[1618010426740,4.04359888,57984.0,57983.0,3.9932]
[1618010431248,4.04359888,57984.0,57983.0,4.23222655]
[1618010433947,4.61463859,57984.0,57983.0,4.23222655]
[1618010434149,4.04359888,57984.0,57983.0,4.23222655]
[1618010436252,2.9093,57984.0,57983.0,4.23222655]
[1618010436752,3.48075037,57984.0,57983.0,4.23222655]
[1618010436952,4.43998473,57984.0,57983.0,4.23222655]
[1618010438355,3.86853436,57984.0,57983.0,4.23222655]
[1618010443965,2.9093,57984.0,57983.0,4.23222655]
[1618010444264,4.44291325,57984.0,57983.0,4.23222655]
[1618010444966,4.6251414,57984.0,57983.0,4.10045655]
[1618010450569,4.05260472,57984.0,57983.0,5.10045655]
[1618010451168,4.05260472,57984.0,57983.0,4.10045655]
[1618010451668,4.05260472,57984.0,57983.0,5.10045655]
[1618010453472,4.05260472,57984.0,57983.0,4.10045655]
[1618010453671,4.05260472,57984.0,57983.0,5.10045655]
[1618010453980,4.05260472,57984.0,57983.0,0.37725655]
[1618010455372,4.62617184,57984.0,57983.0,0.37725655]
[1618010459983,2.9093,57984.0,57983.0,0.37725655]
[1618010460184,4.44601679,57984.0,57983.0,0.37725655]
[1618010460583,4.57852679,57984.0,57983.0,0.27]
[1618010461097,4.57852679,57984.0,57980.0,0.27]
[1618010461335,4.57852679,57984.0,57983.0,0.27]
[1618010461488,4.77852679,57984.0,57983.0,0.27]
[1618010461715,6.27852679,57984.0,57974.0,0.05784759]
[1618010461908,7.27852679,57984.0,57974.0,0.05784759]
[1618010462284,1.0,57980.0,57974.0,0.05784759]
[1618010462486,1.53559605,57975.0,57974.0,0.05784759]
[1618010462686,1.73559605,57975.0,57974.0,0.05784759]
[1618010463588,1.8428526,57975.0,57974.0,0.05682144]
[1618010463785,3.3428526,57975.0,57974.0,0.05682144]
[1618010464185,4.51968665,57975.0,57974.0,0.05682144]
[1618010464387,3.01968665,57975.0,57974.0,0.05682144]
[1618010464785,1.8428526,57975.0,57974.0,0.05682144]
[1618010465787,3.3428526,57975.0,57974.0,0.05682144]
[1618010466197,2.01970347,57975.0,57974.0,0.05682144]
[1618010466401,1.8428526,57975.0,57974.0,0.05682144]
[1618010467391,3.3428526,57975.0,57974.0,0.05682144]
[1618010467591,3.52272841,57975.0,57974.0,0.05682144]
[1618010468494,2.02272841,57975.0,57974.0,0.05682144]
[1618010468796,1.8428526,57975.0,57974.0,0.05682144]
[1618010469395,1.6428526,57975.0,57974.0,0.05682144]
[1618010473497,1.7449626,57975.0,57974.0,0.05682144]
[1618010477299,1.7449626,57975.0,57974.0,0.05579527]
[1618010477998,5.3155626,57975.0,57974.0,0.05579527]
[1618010478398,5.4953588,57975.0,57974.0,0.05579527]
[1618010481702,1.9247588,57975.0,57974.0,0.05579527]
[1618010481904,1.8226488,57975.0,57974.0,0.05579527]
[1618010482204,1.6428526,57975.0,57974.0,0.05579527]
[1618010488108,0.10725655,57975.0,57974.0,0.05579527]
[1618010488308,3.24215655,57975.0,57974.0,0.05579527]
[1618010488709,4.77613665,57975.0,57974.0,0.05579527]
[1618010489109,4.95236218,57975.0,57974.0,0.05579527]
[1618010489810,4.37968855,57975.0,57974.0,0.05579527]
[1618010490011,1.24478855,57975.0,57974.0,0.05579527]
[1618010490212,1.24478855,57975.0,57974.0,4.74409527]
[1618010490511,1.06856302,57975.0,57974.0,0.32579527]
[1618010490710,3.60326302,57975.0,57974.0,0.32579527]
[1618010490911,3.77946135,57975.0,57974.0,0.32579527]
[1618010491111,3.77946135,57975.0,57974.0,1.32579527]
[1618010491511,3.77946135,57975.0,57974.0,1.43305182]
[1618010493712,3.77946135,57975.0,57974.0,0.43305182]
[1618010496216,3.60326302,57975.0,57974.0,0.43305182]
[1618010496416,2.64195655,57975.0,57974.0,0.43305182]
[1618010496616,3.60335384,57975.0,57974.0,0.43305182]
[1618010497123,1.06865384,57975.0,57974.0,0.43305182]
[1618010497416,1.06865384,57975.0,57974.0,3.81545182]
[1618010497726,1.06865384,57975.0,57974.0,4.81545182]
[1618010498827,1.06865384,57975.0,57974.0,1.43305182]
[1618010499216,3.65285384,57975.0,57974.0,1.43305182]
[1618010499424,3.80174748,57975.0,57974.0,1.43305182]